fUST/lending_fUST_20240714
["ID","MTS","AMOUNT","RATE_DAILY","PERIOD"]
[332071567,1720949445231,-500.0,0.00025479,2]
[332071568,1720949445240,-168.81135614,0.00025479,2]
[332071570,1720949445252,-500.0,0.00025479,2]
[332071572,1720949445262,-500.0,0.00025479,2]
[332071575,1720949445273,-500.0,0.00025479,2]
[332071576,1720949445283,-500.0,0.00025479,2]
[332071578,1720949445293,-500.0,0.00025479,2]
[332071580,1720949445302,-500.0,0.00025479,2]
[332071583,1720949445311,-500.0,0.00025479,2]
[332071585,1720949445321,-500.0,0.00025479,2]
[332071587,1720949445330,-394.68451402,0.00025479,2]
[332071589,1720949445339,-187.47904435,0.00025479,2]
[332071590,1720949445348,-565.81997238,0.00025479,2]
[332071592,1720949445358,-548.3,0.00025479,4]
[332071594,1720949445368,-500.0,0.00025479,2]
[332071596,1720949445377,-500.0,0.00025479,2]
[332071598,1720949445387,-604.91,0.00025479,2]
[332071600,1720949445397,-500.0,0.00025479,2]
[332071602,1720949445406,-500.0,0.00025479,2]
[332071604,1720949445415,-500.0,0.00025479,2]
[332071606,1720949445425,-1579.54,0.00025479,2]
[332071608,1720949445434,-500.0,0.00025479,2]
[332071610,1720949445444,-500.0,0.00025479,2]
[332071612,1720949445453,-542.11979795,0.00025479,2]
[332071614,1720949445463,-608.23,0.00025479,2]
[332071616,1720949445472,-6512.98,0.00025479,2]
[332071618,1720949445481,-500.0,0.00025479,2]
[332071620,1720949445491,-500.0,0.00025479,2]
[332071622,1720949445500,-500.0,0.00025479,2]
[332071624,1720949445510,-500.0,0.00025479,2]
[332071626,1720949445519,-500.0,0.00025479,2]
[332071628,1720949445528,-500.0,0.00025479,2]
[332071630,1720949445538,-500.0,0.00025479,2]
[332071632,1720949445547,-500.0,0.00025479,2]
[332071634,1720949445557,-500.0,0.00025479,2]
[332071636,1720949445566,-972.62,0.00025479,2]
[332071638,1720949445576,-7776.55,0.00025479,2]
[332071640,1720949445587,-500.0,0.00025479,2]
[332071642,1720949445597,-9106.00261802,0.000255,5]
[332071644,1720949445608,-105870.01909586,0.000255,2]
[332071648,1720949445631,-5490.9499021,0.000255,2]
[332071654,1720949445685,-500.0,0.00024657,2]
[332071656,1720949445695,-500.0,0.00024657,2]
[332071658,1720949445705,-500.0,0.00024931,2]
[332071660,1720949445714,-500.0,0.00024931,2]
[332071662,1720949445724,-500.0,0.00025205,2]
[332071664,1720949445734,-90650.60907008,0.000255,2]
[332071666,1720949445743,-30000.0,0.00025501,2]
[332071668,1720949445753,-6417.14569814,0.00025743,3]
[332071670,1720949445762,-788.83,0.00025753,2]
[332071672,1720949445771,-500.0,0.00025753,2]
[332071674,1720949445782,-821.0,0.00025753,2]
[332071675,1720949445792,-500.0,0.00025753,2]
[332071676,1720949445802,-500.0,0.00025753,2]
[332071677,1720949445811,-522.64,0.00025753,2]
[332071678,1720949445823,-500.0,0.00025753,2]
[332071679,1720949445834,-500.0,0.00025753,2]
[332071680,1720949445844,-500.0,0.00025753,2]
[332071681,1720949445854,-500.0,0.00025753,2]
[332071682,1720949445864,-500.0,0.00025753,2]
[332071683,1720949445874,-475.87778118,0.00025753,2]
[332071684,1720949445883,-500.0,0.00025753,2]
[332071685,1720949445892,-548.3,0.00025753,4]
[332071686,1720949445903,-500.0,0.00025753,2]
[332071687,1720949445912,-604.91,0.00025753,2]
[332071688,1720949445923,-500.0,0.00025753,2]
[332071689,1720949445934,-500.0,0.00025753,2]
[332071690,1720949445945,-646.42797551,0.00025753,2]
[332071691,1720949445956,-1579.54,0.00025753,2]
[332071692,1720949445967,-500.0,0.00025753,2]
[332071693,1720949445976,-500.0,0.00025753,2]
[332071694,1720949445986,-608.23,0.00025753,2]
[332071695,1720949445998,-6512.98,0.00025753,2]
[332071696,1720949446008,-500.0,0.00025753,2]
[332071697,1720949446019,-500.0,0.00025753,2]
[332071698,1720949446031,-500.0,0.00025753,2]
[332071699,1720949446041,-309.1394754,0.00025753,2]
[332071700,1720949446052,-500.0,0.00025753,2]
[332071701,1720949446063,-500.0,0.00025753,2]
[332071702,1720949446072,-500.0,0.00025753,2]
[332071703,1720949446082,-500.0,0.00025753,2]
[332071704,1720949446091,-500.0,0.00025753,2]
[332071706,1720949446100,-972.62,0.00025753,2]
[332071708,1720949446110,-7776.55,0.00025753,2]
[332071710,1720949446121,-500.0,0.00025753,2]
[332071712,1720949446130,-1036.09285745,0.00025973,2]
[332071713,1720949446140,-1036.09285745,0.00025999,2]
[332071715,1720949446148,-2930.80044754,0.00026,2]
[332071717,1720949446159,-6417.14569814,0.00026017,3]
[332071718,1720949446245,-788.83,0.00026027,2]
[332071719,1720949446257,-500.0,0.00026027,2]
[332071720,1720949446267,-821.0,0.00026027,2]
[332071721,1720949446278,-500.0,0.00026027,2]
[332071722,1720949446290,-500.0,0.00026027,2]
[332071723,1720949446300,-522.64,0.00026027,2]
[332071724,1720949446311,-500.0,0.00026027,2]
[332071725,1720949446322,-500.0,0.00026027,2]
[332071726,1720949446334,-500.0,0.00026027,2]
[332071727,1720949446344,-500.0,0.00026027,2]
[332071728,1720949446355,-500.0,0.00026027,2]
[332071729,1720949446366,-548.3,0.00026027,4]
[332071730,1720949446375,-500.0,0.00026027,2]
[332071731,1720949446384,-604.91,0.00026027,2]
[332071732,1720949446394,-500.0,0.00026027,2]
[332071733,1720949446403,-500.0,0.00026027,2]
[332071734,1720949446414,-1579.54,0.00026027,2]
[332071735,1720949446425,-500.0,0.00026027,2]
[332071736,1720949446435,-608.23,0.00026027,2]
[332071737,1720949446444,-6512.98,0.00026027,2]
[332071738,1720949446456,-500.0,0.00026027,2]
[332071739,1720949446467,-500.0,0.00026027,2]
[332071740,1720949446476,-500.0,0.00026027,2]
[332071741,1720949446485,-500.0,0.00026027,2]
[332071742,1720949446494,-591.63205234,0.00026027,2]
[332071743,1720949446504,-500.0,0.00026027,2]
[332071744,1720949446514,-258.24114799,0.00026027,2]
[332071745,1720949446523,-500.0,0.00026027,2]
[332071746,1720949446533,-972.62,0.00026027,2]
[332071747,1720949446543,-7776.55,0.00026027,2]
[332071748,1720949446552,-500.0,0.00026027,2]
[332071749,1720949446562,-1036.09285745,0.00026182,2]
[332071750,1720949446571,-6417.14569814,0.00026291,3]
[332071751,1720949446580,-788.83,0.00026301,2]
[332071752,1720949446590,-500.0,0.00026301,2]
[332071753,1720949446600,-821.0,0.00026301,2]
[332071755,1720949446610,-500.0,0.00026301,2]
[332071757,1720949446619,-500.0,0.00026301,2]
[332071759,1720949446629,-522.64,0.00026301,2]
[332071761,1720949446639,-500.0,0.00026301,2]
[332071763,1720949446648,-500.0,0.00026301,2]
[332071765,1720949446658,-500.0,0.00026301,2]
[332071767,1720949446667,-500.0,0.00026301,2]
[332071769,1720949446677,-648.55804055,0.00026301,2]
[332071771,1720949446686,-548.3,0.00026301,4]
[332071773,1720949446696,-500.0,0.00026301,2]
[332071775,1720949446706,-604.91,0.00026301,2]
[332071777,1720949446716,-500.0,0.00026301,2]
[332071779,1720949446725,-500.0,0.00026301,2]
[332071780,1720949446735,-1579.54,0.00026301,2]
[332071781,1720949446744,-500.0,0.00026301,2]
[332071782,1720949446754,-608.23,0.00026301,2]
[332071783,1720949446763,-6512.98,0.00026301,2]
[332071784,1720949446773,-500.0,0.00026301,2]
[332071785,1720949446782,-500.0,0.00026301,2]
[332071786,1720949446791,-500.0,0.00026301,2]
[332071787,1720949446801,-500.0,0.00026301,2]
[332071788,1720949446810,-500.0,0.00026301,2]
[332071789,1720949446820,-500.0,0.00026301,2]
[332071790,1720949446829,-972.62,0.00026301,2]
[332071791,1720949446839,-7776.55,0.00026301,2]
[332071792,1720949446848,-500.0,0.00026301,2]
[332071793,1720949446858,-1036.09285745,0.00026318,2]
[332071794,1720949446868,-1036.09285745,0.00026374,2]
[332071795,1720949446877,-1407.0,0.00026393,2]
[332071796,1720949446886,-150.0,0.00026393,2]
[332071797,1720949446896,-202.09799933,0.00026406,2]
[332071798,1720949446906,-1036.09285745,0.00026459,2]
[332071799,1720949446915,-3200.0,0.00026463,2]
[332071800,1720949446924,-3000.0,0.000265,2]
[332071801,1720949446933,-3000.0,0.0002651,2]
[332071802,1720949446943,-3000.0,0.0002652,2]
[332071803,1720949446952,-3000.0,0.0002653,2]
[332071804,1720949446962,-200.0,0.00026531,2]
[332071805,1720949446971,-3000.0,0.0002654,2]
[332071806,1720949446981,-3000.0,0.0002655,2]
[332071807,1720949446991,-3000.0,0.0002656,2]
[332071808,1720949447000,-6417.14569814,0.00026565,3]
[332071809,1720949447010,-3000.0,0.0002657,2]
[332071810,1720949447019,-788.83,0.00026575,2]
[332071811,1720949447029,-500.0,0.00026575,2]
[332071812,1720949447039,-821.0,0.00026575,2]
[332071813,1720949447049,-500.0,0.00026575,2]
[332071814,1720949447058,-522.64,0.00026575,2]
[332071815,1720949447067,-500.0,0.00026575,2]
[332071816,1720949447077,-500.0,0.00026575,2]
[332071817,1720949447086,-500.0,0.00026575,2]
[332071818,1720949447095,-500.0,0.00026575,2]
[332071819,1720949447105,-548.3,0.00026575,4]
[332071820,1720949447115,-438.27270656,0.00026575,2]
[332071821,1720949447124,-604.91,0.00026575,2]
[332071822,1720949447133,-500.0,0.00026575,2]
[332071823,1720949447143,-500.0,0.00026575,2]
[332071824,1720949447153,-1579.54,0.00026575,2]
[332071825,1720949447162,-500.0,0.00026575,2]
[332071826,1720949447171,-608.23,0.00026575,2]
[332071827,1720949447180,-6512.98,0.00026575,2]
[332071828,1720949447190,-500.0,0.00026575,2]
[332071829,1720949447199,-500.0,0.00026575,2]
[332071830,1720949447214,-500.0,0.00026575,2]
[332071831,1720949447224,-500.0,0.00026575,2]
[332071832,1720949447233,-972.62,0.00026575,2]
[332071833,1720949447243,-7776.55,0.00026575,2]
[332071834,1720949447254,-500.0,0.00026575,2]
[332071835,1720949447264,-3000.0,0.0002658,2]
[332071836,1720949447273,-3000.0,0.0002659,2]
[332071837,1720949447283,-3000.0,0.000266,2]
[332071838,1720949447293,-3000.0,0.0002661,2]
[332071839,1720949447302,-3000.0,0.0002662,2]
[332071840,1720949447311,-3000.0,0.0002663,2]
[332071841,1720949447320,-406.73257104,0.00026633,2]
[332071842,1720949447330,-3002.486803,0.0002664,2]
[332071843,1720949447340,-406.73257104,0.00026791,2]
[332071844,1720949447350,-6417.14569814,0.00026839,3]
[332071845,1720949447360,-788.83,0.00026849,2]
[332071846,1720949447369,-821.0,0.00026849,2]
[332071847,1720949447378,-500.0,0.00026849,2]
[332071848,1720949447387,-522.64,0.00026849,2]
[332071849,1720949447396,-500.0,0.00026849,2]
[332071850,1720949447406,-531.73382101,0.00026849,2]
[332071851,1720949447415,-500.0,0.00026849,2]
[332071852,1720949447424,-500.0,0.00026849,2]
[332071853,1720949447434,-548.3,0.00026849,4]
[332071854,1720949447443,-604.91,0.00026849,2]
[332071855,1720949447453,-524.03,0.00026849,2]
[332071856,1720949447462,-500.0,0.00026849,2]
[332071857,1720949447471,-1579.54,0.00026849,2]
[332071858,1720949447481,-500.0,0.00026849,2]
[332071859,1720949447490,-608.23,0.00026849,2]
[332071860,1720949447499,-6512.98,0.00026849,2]
[332071861,1720949447509,-500.0,0.00026849,2]
[332071862,1720949447518,-500.0,0.00026849,2]
[332071863,1720949447527,-500.0,0.00026849,2]
[332071864,1720949447536,-972.62,0.00026849,2]
[332071865,1720949447546,-7776.55,0.00026849,2]
[332071866,1720949447555,-500.0,0.00026849,2]
[332071867,1720949447564,-406.73257104,0.00026879,2]
[332071868,1720949447573,-406.73257104,0.00026933,2]
[332071869,1720949447582,-1036.09285745,0.00026939,2]
[332071870,1720949447592,-406.73257104,0.00026951,2]
[332071871,1720949447601,-1669.04185097,0.00027,4]
[332071872,1720949447611,-1057.70984187,0.00027,15]
[332071873,1720949447620,-1036.09285745,0.00027045,2]
[332071875,1720949447630,-788.83,0.00027123,2]
[332071877,1720949447643,-821.0,0.00027123,2]
[332071879,1720949447653,-500.0,0.00027123,2]
[332071881,1720949447664,-522.64,0.00027123,2]
[332071883,1720949447673,-500.0,0.00027123,2]
[332071885,1720949447683,-500.0,0.00027123,2]
[332071887,1720949447692,-276.56657518,0.00027123,2]
[332071889,1720949447701,-548.3,0.00027123,4]
[332071891,1720949447712,-604.91,0.00027123,2]
[332071893,1720949447721,-500.0,0.00027123,2]
[332071895,1720949447730,-1579.54,0.00027123,2]
[332071896,1720949447739,-500.0,0.00027123,2]
[332071898,1720949447750,-608.23,0.00027123,2]
[332071901,1720949447760,-6512.98,0.00027123,2]
[332071903,1720949447769,-500.0,0.00027123,2]
[332071904,1720949447778,-500.0,0.00027123,2]
[332071906,1720949447787,-249.0152694,0.00027123,2]
[332071908,1720949447797,-972.62,0.00027123,2]
[332071910,1720949447806,-7776.55,0.00027123,2]
[332071912,1720949447815,-500.0,0.00027123,2]
[332071914,1720949447825,-166.4749042,0.00027123,2]
[332071916,1720949447835,-1036.09285745,0.0002715,2]
[332071918,1720949447844,-894.05585834,0.00027162,2]
[332071920,1720949447853,-750.0,0.00027195,2]
[332071922,1720949447862,-411.903533,0.00027195,2]
[332071923,1720949447871,-406.73257104,0.0002729,2]
[332071925,1720949447881,-1036.09285745,0.00027293,2]
[332071927,1720949447891,-6417.14569814,0.00027387,3]
[332071929,1720949447900,-788.83,0.00027397,2]
[332071931,1720949447909,-821.0,0.00027397,2]
[332071933,1720949447919,-500.0,0.00027397,2]
[332071935,1720949447928,-500.0,0.00027397,2]
[332071937,1720949447938,-500.0,0.00027397,2]
[332071939,1720949447948,-500.0,0.00027397,2]
[332071941,1720949447957,-500.0,0.00027397,2]
[332071943,1720949447968,-500.0,0.00027397,2]
[332071945,1720949447979,-500.0,0.00027397,2]
[332071947,1720949447988,-500.0,0.00027397,2]
[332071950,1720949447998,-500.0,0.00027397,2]
[332071951,1720949448010,-500.0,0.00027397,2]
[332071954,1720949448020,-357.70365407,0.00027397,2]
[332071955,1720949448032,-500.0,0.00027397,2]
[332071957,1720949448042,-522.64,0.00027397,2]
[332071959,1720949448051,-500.0,0.00027397,2]
[332071961,1720949448060,-548.3,0.00027397,4]
[332071963,1720949448070,-604.91,0.00027397,2]
[332071965,1720949448079,-500.0,0.00027397,2]
[332071967,1720949448089,-1579.54,0.00027397,2]
[332071969,1720949448098,-500.0,0.00027397,2]
[332071971,1720949448108,-608.23,0.00027397,2]
[332071973,1720949448118,-6512.98,0.00027397,2]
[332071975,1720949448127,-152.42046505,0.00027397,2]
[332071977,1720949448137,-500.0,0.00027397,2]
[332071986,1720949448219,-972.62,0.00027397,2]
[332071988,1720949448228,-7776.55,0.00027397,2]
[332071990,1720949448238,-505.51178607,0.00027397,2]
[332071992,1720949448249,-196.0915281,0.00027397,120]
[332071994,1720949448259,-1036.09285745,0.00027399,2]
[332071995,1720949448268,-175.5061073,0.000274,2]
[332071996,1720949448279,-406.73257104,0.00027459,2]
[332071997,1720949448288,-1036.09285745,0.00027494,2]
[332071998,1720949448298,-43698.03022018,0.000275,2]
[332071999,1720949448307,-406.73257104,0.00027545,2]
[332072001,1720949448317,-164.41629409,0.00027574,2]
[332072003,1720949448327,-158.28553448,0.00027579,2]
[332072005,1720949448336,-788.83,0.00027671,2]
[332072007,1720949448346,-821.0,0.00027671,2]
[332072009,1720949448355,-500.0,0.00027671,2]
[332072011,1720949448365,-522.64,0.00027671,2]
[332072013,1720949448374,-500.0,0.00027671,2]
[332072015,1720949448384,-548.3,0.00027671,4]
[332072017,1720949448393,-604.91,0.00027671,2]
[332072019,1720949448403,-500.0,0.00027671,2]
[332072021,1720949448412,-1579.54,0.00027671,2]
[332072023,1720949448422,-500.0,0.00027671,2]
[332072025,1720949448432,-608.23,0.00027671,2]
[332072027,1720949448441,-6512.98,0.00027671,2]
[332072029,1720949448450,-500.0,0.00027671,2]
[332072031,1720949448460,-972.62,0.00027671,2]
[332072033,1720949448469,-7776.55,0.00027671,2]
[332072035,1720949448479,-154.59445059,0.00027896,2]
[332072036,1720949448489,-400.0,0.00027901,2]
[332072039,1720949448499,-6417.14569814,0.00027935,3]
[332072041,1720949448509,-788.83,0.00027945,2]
[332072043,1720949448519,-821.0,0.00027945,2]
[332072045,1720949448529,-500.0,0.00027945,2]
[332072047,1720949448541,-522.64,0.00027945,2]
[332072049,1720949448551,-152.1525561,0.00027945,2]
[332072051,1720949448562,-548.3,0.00027945,4]
[332072053,1720949448572,-604.91,0.00027945,2]
[332072055,1720949448582,-500.0,0.00027945,2]
[332072057,1720949448591,-1579.54,0.00027945,2]
[332072059,1720949448601,-500.0,0.00027945,2]
[332072061,1720949448611,-608.23,0.00027945,2]
[332072063,1720949448621,-6512.98,0.00027945,2]
[332072066,1720949448632,-627.48165091,0.00027945,2]
[332072068,1720949448643,-972.62,0.00027945,2]
[332072070,1720949448653,-7776.55,0.00027945,2]
[332072072,1720949448663,-11559.17507953,0.0002799,2]
[332072074,1720949448673,-12717.62011358,0.00027999,2]
[332072076,1720949448682,-526.36205563,0.00028,2]
[332072078,1720949448692,-307.28386309,0.00028,30]
[332072080,1720949448702,-406.73257104,0.00028068,2]
[332072082,1720949448711,-1036.09285745,0.00028165,2]
[332072084,1720949448722,-154.59445059,0.00028169,2]
[332072086,1720949448732,-788.83,0.00028219,2]
[332072088,1720949448742,-821.0,0.00028219,2]
[332072090,1720949448752,-500.0,0.00028219,2]
[332072092,1720949448761,-522.64,0.00028219,2]
[332072094,1720949448771,-548.3,0.00028219,4]
[332072096,1720949448781,-604.91,0.00028219,2]
[332072098,1720949448791,-500.0,0.00028219,2]
[332072100,1720949448803,-1579.54,0.00028219,2]
[332072102,1720949448813,-208.49837706,0.00028219,2]
[332072104,1720949448823,-608.23,0.00028219,2]
[332072106,1720949448833,-6512.98,0.00028219,2]
[332072108,1720949448843,-972.62,0.00028219,2]
[332072110,1720949448853,-7776.55,0.00028219,2]
[332072112,1720949448864,-406.73257104,0.0002826,2]
[332072115,1720949448874,-160.221974,0.00028406,2]
[332072117,1720949448884,-788.83,0.00028493,2]
[332072119,1720949448894,-821.0,0.00028493,2]
[332072121,1720949448904,-500.0,0.00028493,2]
[332072123,1720949448915,-522.64,0.00028493,2]
[332072125,1720949448926,-548.3,0.00028493,4]
[332072127,1720949448935,-604.91,0.00028493,2]
[332072129,1720949448947,-500.0,0.00028493,2]
[332072131,1720949448957,-1579.54,0.00028493,2]
[332072133,1720949448967,-608.23,0.00028493,2]
[332072135,1720949448977,-6512.98,0.00028493,2]
[332072137,1720949448987,-972.62,0.00028493,2]
[332072139,1720949448997,-7776.55,0.00028493,2]
[332072141,1720949449007,-151.0,0.00028493,7]
[332072143,1720949449017,-151.0,0.00028493,4]
[332072146,1720949449027,-430.113589,0.00028493,7]
[332072148,1720949449037,-430.113589,0.00028493,7]
[332072150,1720949449048,-151.0,0.00028493,7]
[332072152,1720949449059,-196.824,0.00028493,7]
[332072154,1720949449068,-159.54345514,0.00028654,2]
[332072156,1720949449079,-6417.14569814,0.00028757,3]
[332072158,1720949449088,-317.35068272,0.00028766,2]
[332072160,1720949449099,-788.83,0.00028767,2]
[332072162,1720949449108,-821.0,0.00028767,2]
[332072164,1720949449118,-500.0,0.00028767,2]
[332072166,1720949449129,-522.64,0.00028767,2]
[332072168,1720949449140,-548.3,0.00028767,4]
[332072170,1720949449151,-604.91,0.00028767,2]
[332072172,1720949449162,-500.0,0.00028767,2]
[332072174,1720949449171,-1579.54,0.00028767,2]
[332072176,1720949449182,-608.23,0.00028767,2]
[332072179,1720949449193,-6512.98,0.00028767,2]
[332072181,1720949449207,-208.491298,0.00028767,7]
[332072183,1720949449216,-208.491298,0.00028767,7]
[332072185,1720949449226,-631.084823,0.00028767,7]
[332072187,1720949449236,-631.084823,0.00028767,7]
[332072189,1720949449246,-232.481278,0.00028767,7]
[332072191,1720949449257,-232.481278,0.00028767,7]
[332072193,1720949449267,-253.466851,0.00028767,7]
[332072195,1720949449278,-253.466851,0.00028767,7]
[332072197,1720949449289,-972.62,0.00028767,2]
[332072199,1720949449298,-7776.55,0.00028767,2]
[332072201,1720949449308,-4819.89738904,0.0002877,5]
[332072203,1720949449317,-107358.70423366,0.0002877,2]
[332072205,1720949449326,-406.73257104,0.00028856,2]
[332072207,1720949449337,-1283.69950267,0.000289,2]
[332072209,1720949449347,-406.73257104,0.00028931,2]
[332072211,1720949449357,-406.73257104,0.00028935,2]
[332072213,1720949449367,-788.83,0.00029041,2]
[332072215,1720949449377,-821.0,0.00029041,2]
[332072217,1720949449386,-500.0,0.00029041,2]
[332072219,1720949449396,-522.64,0.00029041,2]
[332072221,1720949449405,-69.14779517,0.00029041,4]
[332072238,1720949449558,-500.0,0.00024657,2]
[332072240,1720949449568,-500.0,0.00024657,2]
[332072242,1720949449577,-500.0,0.00024931,2]
[332072244,1720949449587,-500.0,0.00025205,2]
[332072246,1720949449597,-500.0,0.00025479,2]
[332072248,1720949449606,-503.0,0.00026393,2]
[332072251,1720949449616,-151.0,0.00028493,7]
[332072253,1720949449625,-479.15220483,0.00029041,4]
[332072255,1720949449636,-604.91,0.00029041,2]
[332072257,1720949449645,-500.0,0.00029041,2]
[332072259,1720949449654,-1579.54,0.00029041,2]
[332072261,1720949449663,-608.23,0.00029041,2]
[332072262,1720949449674,-6512.98,0.00029041,2]
[332072264,1720949449685,-972.62,0.00029041,2]
[332072266,1720949449695,-7776.55,0.00029041,2]
[332072268,1720949449705,-788.83,0.00029315,2]
[332072270,1720949449715,-821.0,0.00029315,2]
[332072272,1720949449725,-500.0,0.00029315,2]
[332072274,1720949449735,-522.64,0.00029315,2]
[332072277,1720949449746,-548.3,0.00029315,4]
[332072279,1720949449755,-604.91,0.00029315,2]
[332072281,1720949449764,-500.0,0.00029315,2]
[332072283,1720949449774,-1579.54,0.00029315,2]
[332072285,1720949449783,-608.23,0.00029315,2]
[332072287,1720949449794,-6512.98,0.00029315,2]
[332072289,1720949449803,-972.62,0.00029315,2]
[332072291,1720949449813,-7776.55,0.00029315,2]
[332072293,1720949449822,-1407.0,0.00029393,2]
[332072295,1720949449832,-150.0,0.00029393,2]
[332072296,1720949449842,-159.54345514,0.00029397,2]
[332072298,1720949449852,-164.41629409,0.00029455,2]
[332072299,1720949449861,-1036.09285745,0.00029515,2]
[332072300,1720949449872,-6417.14569814,0.00029579,3]
[332072302,1720949449881,-406.73257104,0.00029585,2]
[332072304,1720949449892,-788.83,0.00029589,2]
[332072306,1720949449901,-821.0,0.00029589,2]
[332072308,1720949449911,-178.91363874,0.00029589,2]
[332072309,1720949449920,-522.64,0.00029589,2]
[332072310,1720949450003,-548.3,0.00029589,4]
[332072311,1720949450013,-604.91,0.00029589,2]
[332072312,1720949450023,-500.0,0.00029589,2]
[332072313,1720949450033,-1579.54,0.00029589,2]
[332072314,1720949450043,-207.431691,0.00029589,7]
[332072315,1720949450052,-608.23,0.00029589,2]
[332072316,1720949450062,-151.0,0.00029589,2]
[332072317,1720949450071,-151.0,0.00029589,7]
[332072318,1720949450082,-6512.98,0.00029589,2]
[332072319,1720949450093,-647.564073,0.00029589,7]
[332072320,1720949450104,-254.807104,0.00029589,7]
[332072321,1720949450114,-647.564073,0.00029589,7]
[332072322,1720949450125,-254.807104,0.00029589,7]
[332072323,1720949450136,-972.62,0.00029589,2]
[332072324,1720949450147,-7776.55,0.00029589,2]
[332072325,1720949450158,-1036.09285745,0.00029722,2]
[332072326,1720949450168,-10421.7862506,0.00029793,2]
[332072327,1720949450177,-167.523711,0.00029803,7]
[332072328,1720949450187,-673.279376,0.00029803,7]
[332072329,1720949450196,-151.0,0.00029803,7]
[332072330,1720949450210,-673.279376,0.00029803,7]
[332072331,1720949450221,-152.906873,0.00029803,7]
[332072332,1720949450232,-151.0,0.00029803,7]
[332072333,1720949450243,-151.0,0.00029803,7]
[332072334,1720949450254,-295.066829,0.00029803,7]
[332072335,1720949450264,-210.556057,0.00029803,7]
[332072336,1720949450273,-210.556057,0.00029803,7]
[332072337,1720949450285,-159.54345514,0.00029833,2]
[332072338,1720949450294,-151.0,0.00029853,7]
[332072339,1720949450304,-151.0,0.00029853,4]
[332072340,1720949450314,-430.113589,0.00029853,7]
[332072341,1720949450325,-430.113589,0.00029853,7]
[332072342,1720949450335,-151.0,0.00029853,7]
[332072343,1720949450344,-151.0,0.00029853,7]
[332072344,1720949450354,-6417.14569814,0.00029853,3]
[332072345,1720949450365,-160.221974,0.00029858,2]
[332072346,1720949450374,-788.83,0.00029863,2]
[332072347,1720949450383,-821.0,0.00029863,2]
[332072348,1720949450392,-522.64,0.00029863,2]
[332072349,1720949450402,-151.0,0.00029863,7]
[332072350,1720949450411,-198.005312,0.00029863,7]
[332072351,1720949450421,-205.630248,0.00029863,7]
[332072352,1720949450432,-548.3,0.00029863,4]
[332072353,1720949450442,-205.630248,0.00029863,7]
[332072354,1720949450453,-604.91,0.00029863,2]
[332072355,1720949450464,-193.02838314,0.00029863,2]
[332072356,1720949450473,-1579.54,0.00029863,2]
[332072357,1720949450483,-608.23,0.00029863,2]
[332072358,1720949450492,-6512.98,0.00029863,2]
[332072359,1720949450502,-972.62,0.00029863,2]
[332072360,1720949450512,-1482.1984335,0.00029863,2]
[332072361,1720949450679,-1207.61465481,0.00029863,2]
[332072362,1720949450864,-16183.24,0.00026839,3]
[332072363,1720949450874,-203.285335,0.00028493,7]
[332072364,1720949450883,-203.285335,0.00028493,7]
[332072365,1720949450893,-503.0,0.00029393,2]
[332072366,1720949450903,-203.285335,0.00029853,7]
[332072367,1720949450914,-148.26873514,0.00029853,7]